bitfinex-derivatives/quotes_BNBF0:USTF0_20250309
["timestamp","ask_amount","ask_price","bid_price","bid_amount"]
[1741542340985,1.184,553.98,553.64,0.30227734]
[1741542341184,1.184,553.98,553.65,0.30227734]
[1741542341385,1.184,553.98,553.66,0.30227734]
[1741542341583,1.184,553.98,553.62,0.30227734]
[1741542341780,1.184,553.98,553.63,0.30227734]
[1741542342183,1.184,553.98,553.64,0.30227734]
[1741542342388,1.184,553.98,553.65,0.30227734]
[1741542342580,1.184,553.98,553.66,0.30227734]
[1741542342785,1.184,553.98,553.67,0.30227734]
[1741542343083,1.184,553.98,553.68,0.30227734]
[1741542343389,1.184,553.98,553.69,0.30227734]
[1741542343585,1.184,553.98,553.61,1.329858]
[1741542343780,1.184,553.98,553.62,0.30244978]
[1741542344385,1.184,553.98,553.6,0.30244978]
[1741542344581,1.184,553.98,553.61,0.30244978]
[1741542344781,1.184,553.98,553.6,0.30244978]
[1741542345888,1.184,553.98,553.61,0.30244978]
[1741542346087,1.184,553.98,553.6,0.30244978]
[1741542347088,1.184,553.98,553.61,0.30247006]
[1741542347289,1.184,553.98,553.6,0.30247006]
[1741542347489,0.913,554.0,553.61,0.30247006]
[1741542347691,0.913,554.0,553.6,0.30247006]
[1741542347882,0.81,553.99,553.6,0.30247006]
[1741542348086,0.81,553.99,553.59,0.3612782]
[1741542348087,0.81,553.99,553.61,0.30247006]
[1741542348293,0.81,553.99,553.62,0.30247006]
[1741542348484,0.81,553.99,553.63,0.30247006]
[1741542348687,0.81,553.99,553.6,0.30247006]
[1741542348890,0.81,553.99,553.59,0.3612782]
[1741542349090,0.81,553.99,553.6,0.3024799]
[1741542349792,0.81,553.99,553.61,0.36126515]
[1741542349994,0.81,553.99,553.62,0.3024799]
[1741542350198,0.81,553.99,553.63,0.36125209]
[1741542350393,0.81,553.99,553.64,0.3024799]
[1741542350595,1.677,553.99,553.65,0.36123904]
[1741542350794,1.677,553.99,553.66,0.30247898]
[1741542352595,1.677,553.99,553.67,0.361226]
[1741542352796,1.677,553.99,553.68,0.30247898]
[1741542353295,1.677,553.99,553.69,0.36121295]
[1741542353694,1.677,553.99,553.7,0.30247898]
[1741542353896,1.677,553.99,553.71,0.3611999]
[1741542354395,1.677,553.99,553.72,0.30252592]
[1741542354595,1.677,553.99,553.73,0.36118686]
[1741542354797,1.677,553.99,553.74,0.30252592]
[1741542357699,1.677,553.99,553.73,0.36118686]
[1741542358200,1.677,553.99,553.74,0.30259841]
[1741542358398,1.677,553.99,553.73,0.36118686]
[1741542360901,1.677,553.99,553.08,1.329858]
[1741542361101,1.677,553.99,553.09,0.30271579]
[1741542361298,1.677,553.99,553.1,0.30271579]
[1741542361497,1.677,553.99,552.82,1.329858]
[1741542361498,1.677,553.99,553.11,0.30271579]
[1741542361697,1.677,553.99,553.13,0.36157865]
[1741542361899,1.677,553.99,553.14,0.30271579]
[1741542362103,0.31432339,553.98,553.15,0.30271579]
[1741542362304,0.31432339,553.98,553.16,0.30271579]
[1741542362604,0.31432339,553.98,553.17,0.30271579]
[1741542362802,0.31432339,553.98,553.18,0.30271579]
[1741542363002,0.31432339,553.98,553.19,0.30271579]
[1741542363204,0.31432339,553.98,553.2,0.30271579]
[1741542363503,0.31432339,553.98,553.13,0.36157865]
[1741542363504,0.31432339,553.98,553.21,0.66414612]
[1741542363704,0.31432339,553.98,553.22,0.30261976]
[1741542363905,1.677,553.99,553.22,0.30261976]
[1741542364104,1.677,553.99,553.21,0.36152636]
[1741542364406,1.677,553.99,553.22,0.3025482]
[1741542364604,1.677,553.99,553.23,0.3025482]
[1741542364804,1.677,553.99,553.24,0.3025482]
[1741542364996,1.677,553.99,553.25,0.3025482]
[1741542365199,1.677,553.99,553.26,0.3025482]
[1741542365403,1.677,553.99,553.27,0.3025482]
[1741542365604,1.677,553.99,553.28,0.3025482]
[1741542365905,1.677,553.99,553.29,0.3025482]
[1741542366205,1.677,553.99,553.3,0.3025482]
[1741542366401,1.677,553.99,553.31,0.30258606]
[1741542366602,1.677,553.99,553.32,0.30258606]
[1741542366802,1.677,553.99,553.33,0.30258606]
[1741542366999,0.955,553.98,553.34,0.30258606]
[1741542367301,0.955,553.98,553.35,0.30258606]
[1741542367499,0.955,553.98,553.36,0.30258606]
[1741542367700,0.955,553.98,553.37,0.30258606]
[1741542367904,0.955,553.98,553.38,0.30258606]
[1741542368107,0.955,553.98,553.39,0.30258606]
[1741542368300,0.955,553.98,553.4,0.30258606]
[1741542368501,0.955,553.98,553.22,0.30258606]
[1741542368705,0.955,553.98,553.23,0.30258606]
[1741542369008,0.955,553.98,553.41,1.329858]
[1741542369204,0.955,553.98,553.42,0.30258606]
[1741542369401,0.955,553.98,553.43,0.30258606]
[1741542369604,0.955,553.98,553.44,0.30258606]
[1741542369808,0.955,553.98,553.45,0.30258606]
[1741542370203,0.955,553.98,553.46,0.30258606]
[1741542370409,0.955,553.98,553.47,0.30258606]
[1741542370609,0.955,553.98,553.48,0.30258606]
[1741542370800,0.955,553.98,553.49,0.30258606]
[1741542371001,0.955,553.98,553.5,0.30258606]
[1741542371209,0.955,553.98,553.51,0.30258606]
[1741542371408,0.955,553.98,553.52,0.30258606]
[1741542371702,0.955,553.98,553.39,1.329858]
[1741542372007,0.955,553.98,553.4,0.30241364]
[1741542372208,0.955,553.98,553.41,0.30241364]
[1741542372409,0.955,553.98,553.42,0.30241364]
[1741542372707,0.955,553.98,553.43,0.30241364]
[1741542372907,0.955,553.98,553.44,0.30241364]
[1741542373104,0.955,553.98,553.45,0.30241364]
[1741542373409,0.955,553.98,553.46,0.30241364]
[1741542373609,0.955,553.98,553.48,1.329858]
[1741542373908,0.656,553.97,553.49,0.30241364]
[1741542374108,0.656,553.97,553.5,0.30241364]
[1741542374301,0.656,553.97,553.51,0.30241364]
[1741542374502,0.656,553.97,553.52,0.30241364]
[1741542374707,0.656,553.97,553.53,0.30241364]
[1741542374900,0.656,553.97,553.54,0.30241364]
[1741542375103,0.656,553.97,553.55,0.30241364]
[1741542375302,0.656,553.97,553.48,1.329858]
[1741542375502,0.782,553.96,553.49,0.30231193]
[1741542375707,0.782,553.96,553.5,0.30231193]
[1741542375907,0.782,553.96,553.51,0.30231193]
[1741542376108,0.628,553.95,553.52,0.30231193]
[1741542376308,0.628,553.95,553.53,0.30231193]
[1741542376542,0.628,553.95,553.75,1.329858]
[1741542376811,0.628,553.95,553.76,0.30231193]
[1741542377210,0.628,553.95,553.77,0.30231193]
[1741542377411,0.628,553.95,553.78,0.30231193]
[1741542377615,0.628,553.95,553.79,0.30231193]
[1741542377815,0.628,553.95,553.8,0.30231193]
[1741542378014,0.628,553.95,553.75,1.329858]
[1741542378015,0.628,553.95,553.81,0.30231193]
[1741542378215,0.628,553.95,553.82,0.30231193]
[1741542378412,0.628,553.95,553.83,0.30231193]
[1741542378617,0.628,553.95,553.58,0.30231193]
[1741542378920,0.628,553.95,553.59,0.30228883]
[1741542379113,0.628,553.95,553.6,0.30228883]
[1741542379319,0.628,553.95,553.61,0.30228883]
[1741542379719,0.628,553.95,553.62,0.30228883]
[1741542379921,0.628,553.95,553.63,0.30228883]
[1741542380113,0.628,553.95,553.58,0.30228883]
[1741542380317,0.628,553.95,553.59,0.30228883]
[1741542380511,0.628,553.95,553.49,0.30228883]
[1741542380716,0.628,553.95,553.5,0.30228883]
[1741542380917,0.628,553.95,553.49,0.30228883]
[1741542381116,0.628,553.95,553.5,0.30228883]
[1741542381319,0.628,553.95,553.49,0.30228883]
[1741542381518,0.628,553.95,553.5,0.30228883]
[1741542381724,0.628,553.95,553.51,0.30228883]
[1741542381922,0.628,553.95,553.52,0.30228883]
[1741542382121,0.628,553.95,553.53,0.30228883]
[1741542382317,0.628,553.95,553.48,1.329858]
[1741542382318,0.628,553.95,553.54,0.30228883]
[1741542382518,0.628,553.95,553.55,0.30228883]
[1741542382718,0.628,553.95,553.56,0.30228883]
[1741542382923,0.628,553.95,553.57,0.30228883]
[1741542383118,0.628,553.95,553.58,0.30228883]
[1741542383324,0.628,553.95,553.59,0.30228883]
[1741542383520,0.628,553.95,553.29,0.30228883]
[1741542383725,0.628,553.95,553.3,0.30228883]
[1741542384024,0.628,553.95,553.31,0.30228883]
[1741542384225,0.10130344,553.97,553.31,0.30228883]
[1741542384424,0.10130344,553.97,553.28,0.31411202]
[1741542384425,0.10130344,553.97,553.32,0.30228883]
[1741542384627,0.6869295,553.98,553.33,0.30228883]
[1741542384826,0.6869295,553.98,553.38,1.329858]
[1741542385027,0.6869295,553.98,553.39,0.30228883]
[1741542385325,0.6869295,553.98,553.4,0.30228883]
[1741542385723,0.6869295,553.98,553.41,0.30228883]
[1741542385920,0.6869295,553.98,553.42,0.30228883]
[1741542386125,0.6869295,553.98,553.43,0.30228883]
[1741542386321,0.6869295,553.98,553.44,0.30228883]
[1741542386519,0.6869295,553.98,553.45,0.30228883]
[1741542386724,0.6869295,553.98,553.46,0.30228883]
[1741542386924,0.6869295,553.98,553.47,0.30228883]
[1741542387122,0.6869295,553.98,553.48,0.30228883]
[1741542387321,0.6869295,553.98,553.29,0.30228883]
[1741542387520,0.6869295,553.98,553.3,0.30228883]
[1741542387727,0.6869295,553.98,553.31,0.30228883]
[1741542387925,0.6869295,553.98,553.32,0.30228883]
[1741542388221,0.6869295,553.98,553.33,0.30228883]
[1741542388726,0.6869295,553.98,553.34,0.30228883]
[1741542388927,0.6869295,553.98,553.35,0.30228883]
[1741542389127,0.6869295,553.98,553.36,0.30228883]
[1741542389326,0.6869295,553.98,553.37,0.30228883]
[1741542389528,0.6869295,553.98,553.45,1.329858]
[1741542389824,0.6869295,553.98,553.46,0.30228883]
[1741542390026,0.6869295,553.98,553.47,0.30228883]
[1741542390322,0.6869295,553.98,553.48,0.30228883]
[1741542390527,0.6869295,553.98,553.49,0.30228883]
[1741542390728,0.6869295,553.98,553.5,0.30228883]
[1741542391022,0.6869295,553.98,553.51,0.30228883]
[1741542391227,0.6869295,553.98,553.52,0.30228883]
[1741542391430,0.6869295,553.98,553.53,0.30228883]
[1741542391627,0.6869295,553.98,553.54,0.30228883]
[1741542391928,0.6869295,553.98,553.55,0.30228883]
[1741542392128,0.6869295,553.98,553.56,0.30228883]
[1741542392129,0.22558432,553.98,553.56,0.30228883]
[1741542392329,0.909,554.07,553.57,0.30228883]
[1741542392529,0.909,554.07,553.58,0.30228883]
[1741542392729,0.909,554.07,553.59,0.30228883]
[1741542392925,0.909,554.07,553.6,0.30211187]
[1741542393147,0.909,554.07,553.61,0.30211187]
[1741542393325,0.909,554.07,553.37,0.31395475]
[1741542393326,0.909,554.07,553.62,0.30211187]
[1741542393631,0.909,554.07,553.72,1.329858]
[1741542393830,0.909,554.07,553.73,0.30211187]
[1741542394030,0.909,554.07,553.74,0.30211187]
[1741542394226,0.909,554.07,553.75,0.30211187]
[1741542394539,0.59595528,554.07,553.72,1.329858]
[1741542394730,0.59595528,554.07,553.73,0.30205459]
[1741542394926,0.59595528,554.07,553.74,0.30205459]
[1741542395127,0.59595528,554.07,553.75,0.30205459]
[1741542395336,0.59595528,554.07,553.76,0.30205459]
[1741542395632,0.59595528,554.07,553.77,0.30205459]
[1741542396031,0.59595528,554.07,553.78,0.30205459]
[1741542396238,0.59595528,554.07,553.79,0.30205459]
[1741542396425,0.59595528,554.07,553.72,1.329858]
[1741542396624,0.59595528,554.07,553.9,1.329858]
[1741542396832,0.59595528,554.07,553.91,0.30199412]
[1741542397031,0.59595528,554.07,553.92,0.30199412]
[1741542397227,0.59595528,554.07,553.93,0.30199412]
[1741542397429,0.59595528,554.07,553.94,0.30199412]
[1741542397630,0.59595528,554.07,553.95,0.30199412]
[1741542397831,0.59595528,554.07,553.96,0.30199412]
[1741542398032,0.59595528,554.07,553.97,0.30199412]
[1741542398432,0.59595528,554.07,553.98,0.30199412]
[1741542398627,0.59595528,554.07,553.99,0.30199412]
[1741542398837,0.59595528,554.07,554.0,0.30199412]
[1741542399138,0.6570237,554.13,554.02,1.329858]
[1741542399433,0.6570237,554.13,554.03,0.30199412]
[1741542399632,1.004,554.15,554.04,0.30199412]
[1741542399834,0.39610429,554.15,554.05,0.30199412]
[1741542400038,0.39610429,554.15,554.06,0.30199412]
[1741542400435,0.39610429,554.15,554.02,1.329858]
[1741542400436,0.39610429,554.15,554.07,0.30199412]
[1741542400935,0.39610429,554.15,554.08,0.30199412]
[1741542401135,0.39610429,554.15,554.09,0.30199412]
[1741542401435,0.39610429,554.15,554.1,0.30199412]
[1741542401634,0.39610429,554.15,554.11,0.30199412]
[1741542402039,0.39610429,554.15,554.12,0.30199412]
[1741542402235,0.39610429,554.15,553.79,0.31371842]
[1741542402236,0.39610429,554.15,554.13,0.30199412]
[1741542402439,0.13373161,554.15,554.14,0.30199412]
[1741542402736,0.08983336,554.15,554.14,0.30199412]
[1741542406139,0.06040412,554.15,554.14,0.30183828]
[1741542408940,0.06040412,554.15,554.14,0.30177424]
[1741542411542,0.88,554.42,554.14,0.30177424]
[1741542411763,0.88,554.42,554.15,0.30177424]
[1741542411945,0.88,554.42,554.16,0.30177424]
[1741542412141,0.88,554.42,554.17,0.30177424]
[1741542412439,0.88,554.42,554.18,0.30177424]
[1741542412638,0.88,554.42,554.19,0.30177424]
[1741542412844,0.88,554.42,554.2,0.30177424]
[1741542413038,0.88,554.42,554.21,0.30177424]
[1741542413241,0.88,554.42,554.22,0.30177424]
[1741542413544,0.88,554.42,554.23,0.30177424]
[1741542413748,0.88,554.42,554.24,0.30177424]
[1741542414045,0.88,554.42,554.25,0.30177424]
[1741542414344,0.88,554.42,554.26,0.30177424]
[1741542414544,0.88,554.42,553.9,1.329858]
[1741542414545,0.88,554.42,554.27,0.30177424]
[1741542414744,0.88,554.42,554.28,0.30177424]
[1741542414943,0.88,554.42,554.29,0.30177424]
[1741542415144,0.88,554.42,553.91,0.30177424]
[1741542415339,0.88,554.42,553.92,0.30177424]
[1741542415544,0.88,554.42,553.93,0.30177424]
[1741542415745,0.88,554.42,553.62,2.68717679]
[1741542415746,0.88,554.42,554.01,1.329858]
[1741542416046,0.88,554.42,554.02,0.3019093]
[1741542416250,0.88,554.42,554.03,0.3019093]
[1741542416439,0.88,554.42,554.04,0.3019093]
[1741542416641,0.88,554.42,554.05,0.3019093]
[1741542417142,0.88,554.42,554.01,1.329858]
[1741542417143,0.88,554.42,554.06,0.3019093]
[1741542417346,0.88,554.42,554.07,0.3019093]
[1741542417546,0.88,554.42,554.08,0.3019093]
[1741542417742,0.88,554.42,554.09,0.3019093]
[1741542417969,0.88,554.42,554.1,0.30182296]
[1741542418141,0.88,554.42,554.11,0.30182296]
[1741542418346,0.88,554.42,554.12,0.30182296]
[1741542418547,0.88,554.42,554.01,1.329858]
[1741542418548,0.88,554.42,554.13,0.30182296]
[1741542418747,0.88,554.42,554.14,0.30182296]
[1741542418950,0.88,554.42,554.15,0.30182296]
[1741542419149,0.88,554.42,554.16,0.30182296]
[1741542419347,0.88,554.42,554.17,0.30182296]
[1741542419543,0.88,554.42,554.05,1.329858]
[1741542419848,0.741,554.58,554.06,0.30180916]
[1741542420061,0.741,554.58,554.07,0.30180916]
[1741542420248,0.741,554.58,554.08,0.30180916]
[1741542420549,0.741,554.58,554.09,0.30180916]
[1741542420748,0.741,554.58,554.23,1.329858]
[1741542420949,0.741,554.58,554.24,0.30180916]
[1741542421248,0.741,554.58,554.25,0.30180916]
[1741542421442,0.741,554.58,554.26,0.30180916]
[1741542421643,0.741,554.58,554.27,0.30180916]
[1741542421841,0.741,554.58,554.28,0.30180916]
[1741542422044,0.741,554.58,554.29,0.30180916]
[1741542422248,0.741,554.58,554.3,0.30180916]
[1741542422650,0.741,554.58,554.31,0.30180916]
[1741542422851,0.741,554.58,554.32,0.30180916]
[1741542423151,0.741,554.58,554.23,1.329858]
[1741542423152,0.741,554.58,554.33,0.30180916]
[1741542423345,0.741,554.58,554.23,1.329858]
[1741542423346,0.741,554.58,554.34,0.30180916]
[1741542423547,0.741,554.58,554.35,0.30180916]
[1741542423751,0.741,554.58,554.36,0.30180916]
[1741542423949,0.741,554.58,554.37,0.30180916]
[1741542424150,0.741,554.58,554.38,0.30180916]
[1741542424351,0.741,554.58,554.29,1.329858]
[1741542425051,0.741,554.58,554.3,0.30176287]
[1741542425656,0.741,554.58,554.49,1.329858]
[1741542425951,0.741,554.58,554.5,0.30176287]
[1741542426653,0.4988858,554.58,554.51,0.30176287]
[1741542427050,0.4988858,554.58,554.52,0.30176287]
[1741542427350,0.18555013,554.58,554.52,0.30176287]
[1741542427556,0.18555013,554.58,554.53,0.30176287]
[1741542427855,0.961,554.79,554.55,1.329858]
[1741542428057,0.961,554.79,554.56,0.30176287]
[1741542428252,1.03859507,556.94,554.57,0.30176287]
[1741542428556,1.7517125,556.81,554.58,0.30176287]
[1741542428850,0.31336812,555.96,554.59,0.3014568]
[1741542429051,0.31336812,555.96,554.6,0.3014568]
[1741542429250,1.03859507,556.75,554.61,0.3014568]
[1741542429555,3.17952824,556.74,554.62,0.3014568]
[1741542429755,5.46270449,556.73,554.63,0.3014568]
[1741542429949,5.46270449,556.73,554.55,1.329858]
[1741542429950,3.39260816,556.72,554.64,0.3014568]
[1741542430153,1.09738587,556.71,554.65,0.3014568]
[1741542430349,3.39260816,556.72,554.66,0.3014568]
[1741542430553,0.716,556.7,554.51,1.329858]
[1741542430753,0.716,556.7,554.52,0.30140889]
[1741542430957,1.39330088,556.69,554.53,0.30140889]
[1741542431150,1.39330088,556.69,554.54,0.30140889]
[1741542431354,2.09630088,556.69,554.55,0.30140889]
[1741542431556,2.09630088,556.69,554.56,0.30140889]
[1741542431751,1.09537801,556.68,554.57,0.30140889]
[1741542431954,1.09524673,556.68,554.58,0.30140889]
[1741542432155,5.06358229,556.69,554.59,0.30140889]
[1741542432451,2.48778831,556.68,554.6,0.30140889]
[1741542432655,1.39330088,556.68,554.61,0.30140889]
[1741542432851,1.39330088,556.68,554.62,0.30140889]
[1741542433050,1.39330088,556.68,554.63,0.30140889]
[1741542433255,1.39330088,556.68,554.64,0.30140889]
[1741542433455,1.441,556.69,554.65,0.30140889]
[1741542433652,1.441,556.69,554.85,1.329858]
[1741542433860,1.441,556.69,554.86,0.30140889]
[1741542434050,1.441,556.69,554.87,0.30140889]
[1741542434251,1.441,556.69,554.88,0.30140889]
[1741542434455,1.441,556.69,554.89,0.30140889]
[1741542434656,1.441,556.69,554.9,0.30140889]
[1741542434850,1.441,556.69,554.91,0.30140889]
[1741542435053,1.441,556.69,554.92,0.30140889]
[1741542435251,1.441,556.69,554.93,0.30140889]
[1741542435453,1.441,556.69,554.94,0.30140889]
[1741542435657,1.441,556.69,554.95,0.30140889]
[1741542435871,1.441,556.69,554.96,0.30140889]
[1741542436050,1.441,556.69,554.97,0.30140889]
[1741542436256,1.441,556.69,554.98,0.30140889]
[1741542436454,1.441,556.69,554.99,0.30140889]
[1741542436659,1.441,556.69,555.0,0.30140889]
[1741542436860,1.441,556.69,554.76,1.329858]
[1741542436861,1.441,556.69,555.01,0.30140889]
[1741542437055,1.441,556.69,554.76,1.329858]
[1741542437056,1.441,556.69,555.02,0.30140889]
[1741542437355,1.441,556.69,555.03,0.30140889]
[1741542437559,1.441,556.69,555.04,0.30140889]
[1741542437753,1.441,556.69,555.05,0.30140889]
[1741542437956,1.441,556.69,555.06,0.30140889]
[1741542438156,1.441,556.69,555.07,0.30140889]
[1741542438361,1.441,556.69,555.08,0.30140889]
[1741542438561,1.441,556.69,555.09,0.30140889]
[1741542438759,1.441,556.69,554.76,1.329858]
[1741542438760,1.441,556.69,555.1,0.30140889]
[1741542439160,1.441,556.69,555.11,0.30140889]
[1741542439357,1.441,556.69,555.12,0.30140889]
[1741542439563,1.441,556.69,555.13,0.30140889]
[1741542439762,1.441,556.69,555.14,0.30140889]
[1741542439964,1.441,556.69,555.15,0.30140889]
[1741542440257,1.441,556.69,555.16,0.30140889]
[1741542440463,1.441,556.69,555.17,0.30140889]
[1741542440658,1.441,556.69,555.18,0.30140889]
[1741542440862,1.441,556.69,555.19,0.30140889]
[1741542441073,1.441,556.69,555.2,0.30140889]
[1741542441374,1.441,556.69,555.21,0.30140889]
[1741542441562,1.441,556.69,555.22,0.30140889]
[1741542441762,1.441,556.69,555.23,0.30140889]
[1741542441967,1.441,556.69,555.24,0.30140889]
[1741542442166,1.441,556.69,555.25,0.30140889]
[1741542442366,1.441,556.69,555.26,0.30140889]
[1741542442566,1.441,556.69,555.27,0.30140889]
[1741542442769,1.441,556.69,555.28,0.30140889]
[1741542442967,1.441,556.69,555.29,0.30140889]
[1741542443168,1.441,556.69,555.3,0.30140889]
[1741542443368,1.441,556.69,554.56,0.3129215]
[1741542443565,1.441,556.69,554.57,0.30103739]
[1741542443868,1.441,556.69,554.56,0.3129215]
[1741542443869,1.441,556.69,554.58,0.30103739]
[1741542444064,1.441,556.69,554.59,0.30103739]
[1741542444260,1.441,556.69,554.6,0.30103739]
[1741542444461,1.441,556.69,554.61,0.30103739]
[1741542444668,1.441,556.69,554.62,0.30103739]
[1741542444971,1.441,556.69,554.68,1.329858]
[1741542445170,1.441,556.69,554.69,0.30103739]
[1741542445370,1.441,556.69,554.7,0.30103739]
[1741542445664,1.441,556.69,554.71,0.30103739]
[1741542445869,1.441,556.69,554.72,0.30103739]
[1741542446070,1.441,556.69,554.73,0.30103739]
[1741542446289,1.441,556.69,554.74,0.30103739]
[1741542446468,1.441,556.69,554.75,0.30103739]
[1741542446667,1.441,556.69,554.68,1.329858]
[1741542446963,1.441,556.69,554.69,0.30103315]
[1741542447165,1.441,556.69,554.7,0.30103315]
[1741542447472,1.441,556.69,554.76,1.329858]
[1741542447662,1.441,556.69,554.77,0.30103315]
[1741542447868,1.441,556.69,554.78,0.30103315]
[1741542448063,1.441,556.69,554.79,0.30103315]
[1741542448362,1.441,556.69,554.76,1.329858]
[1741542448563,1.441,556.69,554.8,0.30100045]
[1741542448768,1.441,556.69,554.81,0.30100045]
[1741542448968,1.441,556.69,554.82,0.30100045]
[1741542449168,0.31289055,556.68,554.83,0.30100045]
[1741542449379,0.31289055,556.68,554.84,0.30100045]
[1741542449761,0.31289055,556.68,554.85,0.30100045]
[1741542449969,0.31289055,556.68,554.86,0.30100045]
[1741542450165,0.31289055,556.68,554.87,0.30100045]
[1741542450573,0.31289055,556.68,554.88,0.30100045]
[1741542450772,0.31289055,556.68,554.89,0.30100045]
[1741542450966,0.31289055,556.68,554.9,0.30100045]
[1741542451170,0.31289055,556.68,554.91,0.30100045]
[1741542451375,0.31289055,556.68,554.92,0.30100045]
[1741542451574,0.31289055,556.68,554.93,0.30100045]
[1741542451775,0.31289055,556.68,554.94,0.30100045]
[1741542451980,0.31289055,556.68,554.95,0.30100045]
[1741542452178,0.31289055,556.68,554.96,0.30100045]
[1741542452378,0.716,556.7,554.97,0.30100045]
[1741542452676,0.716,556.7,554.71,0.31289055]
[1741542452677,0.772,556.67,554.98,0.30100045]
[1741542452880,0.772,556.67,554.99,0.30100045]
[1741542453087,0.864,556.66,555.0,0.30100045]
[1741542453287,0.864,556.66,555.01,0.30100045]
[1741542453487,0.864,556.66,555.02,0.30100045]
[1741542453687,0.864,556.66,554.71,0.31289055]
[1741542453688,0.864,556.66,555.03,0.30100045]
[1741542453884,0.864,556.66,555.04,0.30100045]
[1741542454080,0.864,556.66,555.05,0.30100045]
[1741542454286,0.864,556.66,555.06,0.30100045]
[1741542454588,0.864,556.66,554.71,0.31289055]
[1741542454589,0.864,556.66,555.07,0.30100045]
[1741542454788,0.864,556.66,555.08,0.30100045]
[1741542454986,0.864,556.66,554.82,1.329858]
[1741542454987,0.864,556.66,555.09,0.30100045]
[1741542455192,0.864,556.66,554.82,1.329858]
[1741542455193,0.864,556.66,555.1,0.30100045]
[1741542455391,0.864,556.66,555.11,0.30100045]
[1741542455695,0.864,556.66,555.12,0.30100045]
[1741542455892,0.864,556.66,555.13,0.30100045]
[1741542456085,0.864,556.66,555.14,0.30100045]
[1741542456284,0.864,556.66,554.82,1.329858]
[1741542456285,0.864,556.66,555.15,0.30100045]
[1741542456592,0.864,556.66,555.16,0.30100045]
[1741542456787,0.864,556.66,555.17,0.30100045]
[1741542456988,0.864,556.66,555.18,0.30100045]
[1741542457187,0.864,556.66,555.19,0.30100045]
[1741542457388,1.17687367,556.66,555.2,0.30100045]
[1741542457596,1.17687367,556.66,555.21,0.30100045]
[1741542457797,1.17687367,556.66,555.22,0.30100045]
[1741542457985,1.17687367,556.66,555.23,0.30100045]
[1741542458190,1.17687367,556.66,555.24,0.30100045]
[1741542458388,1.17687367,556.66,555.25,0.30100045]
[1741542458689,1.17687367,556.66,555.26,0.30100045]
[1741542458895,1.17687367,556.66,555.27,0.30100045]
[1741542459087,1.17687367,556.66,554.97,1.329858]
[1741542459301,1.17687367,556.66,554.98,0.30115254]
[1741542459495,1.17687367,556.66,554.99,0.30115254]
[1741542459720,1.17687367,556.66,555.0,0.30115254]
[1741542459889,1.17687367,556.66,555.01,0.30115254]
[1741542460087,0.864,556.66,555.01,0.30115254]
[1741542460288,0.864,556.66,555.02,0.30115254]
[1741542460598,0.864,556.66,555.03,0.30115254]
[1741542460894,0.864,556.66,555.04,0.30115254]
[1741542461093,0.864,556.66,555.09,1.329858]
[1741542461294,0.864,556.66,555.1,0.30115254]
[1741542461489,0.864,556.66,555.11,0.30115254]
[1741542461692,0.864,556.66,555.12,0.30115254]
[1741542461899,0.864,556.66,555.13,0.30115254]
[1741542462593,0.864,556.66,555.14,0.30115254]
[1741542462794,0.864,556.66,555.15,0.30103051]
[1741542462990,0.864,556.66,555.16,0.30103051]
[1741542463191,0.864,556.66,555.17,0.30103051]
[1741542463393,0.864,556.66,555.18,0.30103051]
[1741542463593,0.864,556.66,555.19,0.30103051]
[1741542463889,1.22,556.65,555.2,0.30103051]
[1741542464090,1.22,556.65,555.21,0.30103051]
[1741542464395,1.53285398,556.65,555.22,0.30103051]
[1741542464598,1.53285398,556.65,555.23,0.30103051]
[1741542464798,1.53285398,556.65,555.24,0.30103051]
[1741542465094,1.53285398,556.65,555.25,0.30103051]
[1741542465290,1.53285398,556.65,555.26,0.30103051]
[1741542465495,1.53285398,556.65,555.27,0.30103051]
[1741542465695,1.53285398,556.65,555.28,0.30103051]
[1741542465891,1.22,556.65,555.28,0.30103051]
[1741542466097,0.31286102,556.64,555.3,0.36016567]